fUSD/lending_fUSD_20241121
["ID","MTS","AMOUNT","RATE_DAILY","PERIOD"]
[342961722,1732229434941,-2611.12245448,0.00038872,2]
[342961723,1732229434951,-15337.06762956,0.00038882,2]
[342961724,1732229434960,-620.88,0.000389,120]
[342961725,1732229434969,-269.93239032,0.00038902,2]
[342961726,1732229434979,-583.88,0.00038902,11]
[342961727,1732229434988,-500.0,0.00038902,11]
[342961728,1732229434997,-472.81,0.00038902,11]
[342961729,1732229435007,-500.0,0.00038902,11]
[342961730,1732229435016,-376.67,0.00038902,11]
[342961731,1732229435025,-541.33,0.00038902,11]
[342961732,1732229435035,-500.0,0.00038902,11]
[342961733,1732229435044,-506.98065074,0.00038902,14]
[342961734,1732229435053,-500.0,0.00038902,11]
[342961735,1732229435062,-500.0,0.00038902,11]
[342961736,1732229435071,-500.0,0.00038902,11]
[342961737,1732229435080,-316.37,0.00038902,11]
[342961738,1732229435090,-500.0,0.00038902,11]
[342961739,1732229435099,-500.0,0.00038902,11]
[342961740,1732229435108,-500.0,0.00038902,11]
[342961741,1732229435117,-500.0,0.00038902,11]
[342961742,1732229435126,-500.0,0.00038902,11]
[342961743,1732229435135,-500.0,0.00038902,11]
[342961744,1732229435150,-88076.06992199,0.0003891,2]
[342961745,1732229435160,-2611.12245448,0.00038928,2]
[342961746,1732229435169,-1599.22,0.00038928,2]
[342961747,1732229435179,-433.33,0.00038928,2]
[342961748,1732229435188,-433.33,0.00038928,2]
[342961749,1732229435197,-420.64,0.00038928,2]
[342961750,1732229435206,-150.0,0.00038928,2]
[342961751,1732229435215,-13765.99701715,0.00038935,2]
[342961752,1732229435224,-3881.8967582,0.00038942,2]
[342961770,1732229437811,-3861.540196,0.00038942,2]
[342961771,1732229437820,-269.93239032,0.00038942,2]
[342961772,1732229437830,-13765.99701715,0.00038963,2]
[342961773,1732229437839,-357.52,0.00038974,11]
[342961774,1732229437848,-500.0,0.00038974,11]
[342961775,1732229437857,-500.0,0.00038974,11]
[342961776,1732229437866,-500.0,0.00038974,11]
[342961777,1732229437875,-500.0,0.00038974,11]
[342961778,1732229437884,-500.0,0.00038974,11]
[342961779,1732229437893,-500.0,0.00038974,11]
[342961780,1732229437903,-590.79,0.00038974,11]
[342961781,1732229437913,-500.0,0.00038974,11]
[342961782,1732229437922,-500.0,0.00038974,11]
[342961783,1732229437931,-500.0,0.00038974,11]
[342961784,1732229437940,-500.0,0.00038974,11]
[342961785,1732229437950,-500.0,0.00038974,11]
[342961786,1732229437959,-500.0,0.00038974,11]
[342961787,1732229437968,-1765.22,0.00038974,11]
[342961788,1732229437977,-500.0,0.00038974,11]
[342961789,1732229437986,-500.0,0.00038974,11]
[342961790,1732229437995,-500.0,0.00038974,11]
[342961791,1732229438005,-500.0,0.00038974,11]
[342961792,1732229438014,-500.0,0.00038974,11]
[342961793,1732229438023,-500.0,0.00038974,11]
[342961794,1732229438032,-581.0,0.00038974,11]
[342961795,1732229438041,-500.0,0.00038974,11]
[342961796,1732229438050,-500.0,0.00038974,11]
[342961797,1732229438059,-751.76,0.00038974,2]
[342961798,1732229438068,-500.0,0.00038974,11]
[342961799,1732229438077,-500.0,0.00038974,11]
[342961800,1732229438086,-500.0,0.00038974,11]
[342961801,1732229438096,-500.0,0.00038974,11]
[342961802,1732229438105,-500.0,0.00038974,11]
[342961803,1732229438115,-500.0,0.00038974,11]
[342961804,1732229438124,-434.84,0.00038974,11]
[342961805,1732229438134,-2212.16,0.00038974,11]
[342961806,1732229438146,-500.0,0.00038974,11]
[342961807,1732229438156,-591.87,0.00038974,11]
[342961808,1732229438167,-500.0,0.00038974,11]
[342961809,1732229438176,-622.88,0.00038974,11]
[342961810,1732229438187,-500.0,0.00038974,11]
[342961811,1732229438196,-322.63,0.00038974,11]
[342961812,1732229438206,-446.65,0.00038974,11]
[342961813,1732229438215,-1607.83,0.00038974,11]
[342961814,1732229438226,-500.0,0.00038974,11]
[342961815,1732229438235,-500.0,0.00038974,11]
[342961816,1732229438244,-500.0,0.00038974,11]
[342961817,1732229438254,-500.0,0.00038974,11]
[342961818,1732229438263,-500.0,0.00038974,11]
[342961819,1732229438272,-500.0,0.00038974,11]
[342961820,1732229438282,-9220.4148,0.00038975,2]
[342961821,1732229438291,-450.0,0.00039,2]
[342961822,1732229438300,-500.0,0.00039074,11]
[342961823,1732229438310,-362.80878604,0.00039074,11]
[342961824,1732229438407,-137.19121396,0.00039074,11]
[342961825,1732229438418,-500.0,0.00039074,11]
[342961826,1732229438426,-198.94,0.00039074,11]
[342961827,1732229438435,-500.0,0.00039074,11]
[342961828,1732229438444,-500.0,0.00039074,11]
[342961829,1732229438454,-500.0,0.00039074,11]
[342961830,1732229438463,-500.0,0.00039074,11]
[342961831,1732229438472,-500.0,0.00039074,11]
[342961832,1732229438480,-226.63,0.00039074,11]
[342961833,1732229438489,-361.74,0.00039074,11]
[342961834,1732229438499,-500.0,0.00039074,11]
[342961835,1732229438508,-500.0,0.00039074,11]
[342961836,1732229438517,-500.0,0.00039074,11]
[342961837,1732229438526,-151.0,0.00039074,14]
[342961838,1732229438535,-500.0,0.00039074,11]
[342961839,1732229438544,-284.26,0.00039074,11]
[342961840,1732229438554,-156.16,0.00039074,11]
[342961841,1732229438563,-279.76,0.00039074,11]
[342961842,1732229438572,-500.0,0.00039074,11]
[342961843,1732229438582,-500.0,0.00039074,11]
[342961844,1732229438591,-500.0,0.00039074,7]
[342961845,1732229438600,-500.0,0.00039074,11]
[342961846,1732229438609,-500.0,0.00039074,11]
[342961847,1732229438618,-500.0,0.00039074,11]
[342961848,1732229438627,-325.28233392,0.00039074,11]
[342961849,1732229438638,-174.71766608,0.00039074,11]
[342961850,1732229438648,-500.0,0.00039074,11]
[342961851,1732229438657,-500.0,0.00039074,11]
[342961852,1732229438667,-249.53,0.00039074,11]
[342961853,1732229438677,-69.46723137,0.00039074,11]
[342961854,1732229438688,-430.53276863,0.00039074,11]
[342961855,1732229438697,-500.0,0.00039074,11]
[342961856,1732229438706,-299.84,0.00039074,11]
[342961857,1732229438716,-500.0,0.00039074,11]
[342961858,1732229438725,-443.13,0.00039074,11]
[342961859,1732229438735,-500.0,0.00039074,11]
[342961860,1732229438744,-511.42,0.00039074,11]
[342961861,1732229438754,-500.0,0.00039074,11]
[342961862,1732229438763,-500.0,0.00039074,11]
[342961863,1732229438771,-500.0,0.00039074,11]
[342961864,1732229438781,-500.0,0.00039074,11]
[342961865,1732229438790,-500.0,0.00039074,11]
[342961866,1732229438800,-500.0,0.00039074,11]
[342961867,1732229438809,-500.0,0.00039074,11]
[342961868,1732229438818,-500.0,0.00039074,11]
[342961869,1732229438828,-500.0,0.00039074,11]
[342961870,1732229438837,-500.0,0.00039074,11]
[342961871,1732229438846,-500.0,0.00039074,11]
[342961872,1732229438856,-500.0,0.00039074,11]
[342961873,1732229438865,-214.67472137,0.00039074,11]
[342961874,1732229438877,-285.32527863,0.00039074,11]
[342961875,1732229438886,-500.0,0.00039074,11]
[342961876,1732229438896,-465.82,0.00039074,11]
[342961877,1732229438905,-500.0,0.00039074,11]
[342961878,1732229438915,-500.0,0.00039074,11]
[342961879,1732229438924,-500.0,0.00039074,11]
[342961880,1732229438933,-569.52,0.00039074,11]
[342961881,1732229438943,-500.0,0.00039074,11]
[342961882,1732229438952,-500.0,0.00039074,11]
[342961883,1732229438962,-402.405,0.00039074,11]
[342961884,1732229438972,-500.0,0.00039074,11]
[342961885,1732229438981,-500.0,0.00039074,11]
[342961886,1732229438990,-224.7,0.00039074,11]
[342961887,1732229439138,-500.0,0.00039074,11]
[342961888,1732229439150,-293.11,0.00039074,11]
[342961889,1732229439160,-500.0,0.00039074,11]
[342961890,1732229439175,-290.23,0.00039074,11]
[342961891,1732229439185,-500.0,0.00039075,11]
[342961892,1732229439195,-151.0,0.00039075,14]
[342961893,1732229439205,-377.03742916,0.00039076,2]
[342961894,1732229439216,-383.35,0.00039176,11]
[342961895,1732229439225,-500.0,0.00039176,11]
[342961896,1732229439235,-351.29,0.00039176,11]
[342961897,1732229439245,-500.0,0.00039176,11]
[342961898,1732229439254,-500.0,0.00039176,11]
[342961899,1732229439263,-500.0,0.00039176,11]
[342961900,1732229439272,-500.0,0.00039176,11]
[342961901,1732229439281,-500.0,0.00039176,11]
[342961902,1732229439291,-643.7,0.00039176,11]
[342961903,1732229439301,-500.0,0.00039176,11]
[342961904,1732229439311,-500.0,0.00039176,11]
[342961905,1732229439320,-151.0,0.00039176,14]
[342961906,1732229439330,-247.67,0.00039176,11]
[342961907,1732229439339,-151.0,0.00039176,14]
[342961908,1732229439349,-175.712065,0.00039176,14]
[342961909,1732229439358,-175.712065,0.00039176,14]
[342961910,1732229439367,-7403.6784403,0.00039221,2]
[342961911,1732229439377,-1886.7576089,0.00039221,2]
[342961912,1732229439387,-524.92,0.00039248,11]
[342961913,1732229439397,-500.0,0.00039248,11]
[342961914,1732229439406,-500.0,0.00039248,11]
[342961915,1732229439421,-500.0,0.00039248,11]
[342961916,1732229439431,-500.0,0.00039248,11]
[342961917,1732229439441,-500.0,0.00039248,11]
[342961918,1732229439451,-590.79,0.00039248,11]
[342961919,1732229439460,-500.0,0.00039248,11]
[342961920,1732229439470,-446.49149921,0.00039248,11]
[342961921,1732229439481,-500.0,0.00039248,11]
[342961922,1732229439490,-500.0,0.00039248,11]
[342961923,1732229439499,-500.0,0.00039248,11]
[342961924,1732229439509,-587.3325926,0.00039248,11]
[342961925,1732229439518,-1765.22,0.00039248,11]
[342961926,1732229439527,-500.0,0.00039248,11]
[342961927,1732229439537,-500.0,0.00039248,11]
[342961928,1732229439546,-500.0,0.00039248,11]
[342961929,1732229439556,-500.0,0.00039248,11]
[342961930,1732229439565,-500.0,0.00039248,11]
[342961931,1732229439575,-500.0,0.00039248,11]
[342961932,1732229439584,-500.0,0.00039248,11]
[342961933,1732229439593,-500.0,0.00039248,11]
[342961934,1732229439603,-751.76,0.00039248,2]
[342961935,1732229439612,-587.19,0.00039248,11]
[342961936,1732229439622,-500.0,0.00039248,11]
[342961937,1732229439631,-500.0,0.00039248,11]
[342961939,1732229439641,-500.0,0.00039248,11]
[342961940,1732229439650,-500.0,0.00039248,11]
[342961942,1732229439659,-500.0,0.00039248,11]
[342961944,1732229439671,-2212.16,0.00039248,11]
[342961946,1732229439680,-428.22,0.00039248,11]
[342961948,1732229439689,-500.0,0.00039248,11]
[342961950,1732229439699,-622.88,0.00039248,11]
[342961951,1732229439709,-500.0,0.00039248,11]
[342961952,1732229439718,-1607.83,0.00039248,11]
[342961953,1732229439727,-500.0,0.00039248,11]
[342961954,1732229439736,-500.0,0.00039248,11]
[342961955,1732229439746,-265.21,0.00039248,11]
[342961956,1732229439756,-500.0,0.00039248,11]
[342961957,1732229439766,-500.0,0.00039248,11]
[342961958,1732229439775,-929.23,0.00039279,2]
[342961959,1732229439785,-1000.0,0.00039348,2]
[342961960,1732229439794,-500.0,0.00039348,11]
[342961961,1732229439804,-500.0,0.00039348,11]
[342961962,1732229439814,-500.0,0.00039348,11]
[342961963,1732229439823,-500.0,0.00039348,11]
[342961964,1732229439832,-341.74,0.00039348,11]
[342961965,1732229439841,-500.0,0.00039348,11]
[342961966,1732229439851,-500.0,0.00039348,11]
[342961967,1732229439861,-327.18,0.00039348,11]
[342961968,1732229439870,-500.0,0.00039348,11]
[342961969,1732229439880,-500.0,0.00039348,11]
[342961970,1732229439889,-567.44,0.00039348,11]
[342961971,1732229439899,-500.0,0.00039348,11]
[342961972,1732229439909,-500.0,0.00039348,11]
[342961973,1732229439920,-500.0,0.00039348,7]
[342961974,1732229439930,-501.44,0.00039348,11]
[342961975,1732229439939,-500.0,0.00039348,11]
[342961976,1732229439948,-350.67,0.00039348,11]
[342961977,1732229439958,-500.0,0.00039348,11]
[342961978,1732229439967,-500.0,0.00039348,11]
[342961979,1732229439977,-500.0,0.00039348,11]
[342961980,1732229439986,-500.0,0.00039348,11]
[342961981,1732229439996,-500.0,0.00039348,11]
[342961982,1732229440005,-500.0,0.00039348,11]
[342961983,1732229440015,-225.94,0.00039348,11]
[342961984,1732229440024,-500.0,0.00039348,11]
[342961985,1732229440033,-196.72,0.00039348,11]
[342961986,1732229440042,-500.0,0.00039348,11]
[342961987,1732229440051,-500.0,0.00039348,11]
[342961989,1732229440060,-500.0,0.00039348,11]
[342961991,1732229440069,-500.0,0.00039348,11]
[342961992,1732229440079,-500.0,0.00039348,11]
[342961993,1732229440088,-617.02,0.00039348,11]
[342961994,1732229440097,-500.0,0.00039348,11]
[342961995,1732229440106,-500.0,0.00039348,11]
[342961996,1732229440115,-195.18,0.00039348,11]
[342961997,1732229440125,-500.0,0.00039348,11]
[342961998,1732229440134,-500.0,0.00039348,11]
[342961999,1732229440144,-500.0,0.00039348,11]
[342962000,1732229440153,-500.0,0.00039348,11]
[342962001,1732229440164,-500.0,0.00039348,11]
[342962002,1732229440173,-575.51,0.00039348,11]
[342962003,1732229440183,-500.0,0.00039348,11]
[342962004,1732229440193,-500.0,0.00039348,11]
[342962005,1732229440202,-500.0,0.00039348,11]
[342962006,1732229440211,-500.0,0.00039348,11]
[342962007,1732229440222,-151.0,0.00039349,14]
[342962008,1732229440231,-151.0,0.00039349,14]
[342962009,1732229440240,-151.0,0.00039349,14]
[342962010,1732229440249,-151.0,0.00039349,14]
[342962011,1732229440258,-226.027577,0.00039349,14]
[342962012,1732229440267,-312.76,0.00039349,11]
[342962013,1732229440276,-151.0,0.00039349,14]
[342962014,1732229440285,-151.0,0.00039349,14]
[342962015,1732229440294,-151.0,0.00039349,14]
[342962016,1732229440303,-151.0,0.00039349,14]
[342962017,1732229440312,-185.572498,0.00039349,14]
[342962018,1732229440322,-185.572498,0.00039349,14]
[342962019,1732229440331,-151.0,0.00039349,14]
[342962020,1732229440339,-151.0,0.00039349,14]
[342962021,1732229440349,-151.0,0.00039349,14]
[342962022,1732229440358,-166.964526,0.00039349,14]
[342962023,1732229440367,-151.0,0.00039349,14]
[342962024,1732229440376,-1075.786781,0.00039349,14]
[342962025,1732229440385,-1075.786781,0.00039349,14]
[342962026,1732229440394,-151.0,0.00039349,14]
[342962027,1732229440403,-151.0,0.00039349,14]
[342962028,1732229440412,-150.0,0.00039448,120]
[342962029,1732229440422,-448.63,0.0003945,11]
[342962030,1732229440432,-500.0,0.0003945,11]
[342962031,1732229440441,-500.0,0.0003945,11]
[342962032,1732229440450,-500.0,0.0003945,11]
[342962033,1732229440459,-500.0,0.0003945,11]
[342962034,1732229440468,-500.0,0.0003945,11]
[342962035,1732229440478,-283.85,0.0003945,11]
[342962036,1732229440487,-500.0,0.0003945,11]
[342962037,1732229440496,-500.0,0.00039522,11]
[342962038,1732229440505,-605.11,0.00039522,11]
[342962039,1732229440514,-500.0,0.00039522,11]
[342962040,1732229440524,-500.0,0.00039522,11]
[342962041,1732229440533,-500.0,0.00039522,11]
[342962042,1732229440544,-590.79,0.00039522,11]
[342962043,1732229440553,-500.0,0.00039522,11]
[342962044,1732229440562,-500.0,0.00039522,11]
[342962045,1732229440571,-500.0,0.00039522,11]
[342962046,1732229440580,-500.0,0.00039522,11]
[342962047,1732229440590,-1765.22,0.00039522,11]
[342962048,1732229440599,-545.75,0.00039522,11]
[342962049,1732229440608,-500.0,0.00039522,11]
[342962050,1732229440618,-500.0,0.00039522,11]
[342962051,1732229440627,-215.92,0.00039522,11]
[342962052,1732229440636,-500.0,0.00039522,11]
[342962053,1732229440647,-500.0,0.00039522,11]
[342962054,1732229440657,-500.0,0.00039522,11]
[342962055,1732229440668,-500.0,0.00039522,11]
[342962056,1732229440677,-751.76,0.00039522,2]
[342962057,1732229440687,-272.04,0.00039522,11]
[342962058,1732229440696,-500.0,0.00039522,11]
[342962059,1732229440705,-500.0,0.00039522,11]
[342962060,1732229440715,-253.73,0.00039522,11]
[342962061,1732229440724,-500.0,0.00039522,11]
[342962062,1732229440733,-2212.16,0.00039522,11]
[342962063,1732229440742,-500.0,0.00039522,11]
[342962064,1732229440751,-622.88,0.00039522,11]
[342962065,1732229440761,-500.0,0.00039522,11]
[342962066,1732229440770,-1607.83,0.00039522,11]
[342962067,1732229440779,-500.0,0.00039522,11]
[342962068,1732229440788,-500.0,0.00039522,11]
[342962069,1732229440797,-500.0,0.00039522,11]
[342962070,1732229440806,-500.0,0.00039522,11]
[342962071,1732229440815,-593.95,0.00039622,11]
[342962072,1732229440824,-500.0,0.00039622,11]
[342962073,1732229440833,-500.0,0.00039622,11]
[342962074,1732229440843,-500.0,0.00039622,11]
[342962075,1732229440852,-500.0,0.00039622,11]
[342962076,1732229440861,-433.33,0.00039622,11]
[342962077,1732229440870,-500.0,0.00039622,11]
[342962078,1732229440880,-500.0,0.00039622,11]
[342962079,1732229440889,-500.0,0.00039622,11]
[342962080,1732229440898,-185.39,0.00039622,11]
[342962081,1732229440907,-310.39,0.00039622,7]
[342962082,1732229440918,-500.0,0.00039622,11]
[342962083,1732229440928,-500.0,0.00039622,11]
[342962084,1732229440938,-500.0,0.00039622,11]
[342962085,1732229440947,-500.0,0.00039622,11]
[342962086,1732229440957,-500.0,0.00039622,11]
[342962087,1732229440967,-151.0,0.00039622,14]
[342962088,1732229440977,-500.0,0.00039622,11]
[342962089,1732229440986,-215.68,0.00039622,11]
[342962090,1732229440995,-500.0,0.00039622,11]
[342962091,1732229441005,-500.0,0.00039622,11]
[342962092,1732229441014,-500.0,0.00039622,11]
[342962093,1732229441023,-500.0,0.00039622,11]
[342962094,1732229441032,-500.0,0.00039622,11]
[342962095,1732229441041,-178.28,0.00039622,11]
[342962096,1732229441052,-500.0,0.00039622,11]
[342962097,1732229441061,-500.0,0.00039622,11]
[342962098,1732229441070,-500.0,0.00039622,11]
[342962099,1732229441079,-500.0,0.00039622,11]
[342962100,1732229441089,-500.0,0.00039622,11]
[342962101,1732229441099,-514.15822898,0.00039622,11]
[342962102,1732229441108,-500.0,0.00039622,11]
[342962103,1732229441117,-151.0,0.00039622,14]
[342962104,1732229441127,-500.0,0.00039622,11]
[342962105,1732229441138,-500.0,0.00039622,11]
[342962106,1732229441149,-500.0,0.00039622,11]
[342962107,1732229441158,-500.0,0.00039622,11]
[342962108,1732229441171,-175.712065,0.00039622,14]
[342962109,1732229441182,-175.712065,0.00039622,14]
[342962110,1732229441191,-151.0,0.00039623,14]
[342962111,1732229441201,-251.719904,0.00039724,14]
[342962112,1732229441210,-500.0,0.00039724,11]
[342962113,1732229441220,-500.0,0.00039724,11]
[342962114,1732229441229,-500.0,0.00039724,11]
[342962115,1732229441241,-500.0,0.00039724,11]
[342962116,1732229441250,-500.0,0.00039724,11]
[342962117,1732229441260,-184.965118,0.00039742,14]
[342962118,1732229441269,-2500.0,0.00039742,30]
[342962119,1732229441278,-298.179998,0.00039745,14]
[342962120,1732229441288,-151.0,0.00039745,14]
[342962121,1732229441297,-1107.064855,0.00039745,14]
[342962122,1732229441306,-1107.064855,0.00039745,14]
[342962123,1732229441315,-151.0,0.00039745,14]
[342962124,1732229441325,-2500.0,0.00039745,30]
[342962125,1732229441336,-1000.0,0.00039774,2]
[342962126,1732229441345,-500.0,0.00039796,11]
[342962127,1732229441355,-500.0,0.00039796,11]
[342962128,1732229441364,-409.17,0.00039796,11]
[342962129,1732229441374,-590.79,0.00039796,11]
[342962130,1732229441383,-500.0,0.00039796,11]
[342962131,1732229441392,-500.0,0.00039796,11]
[342962132,1732229441402,-500.0,0.00039796,11]
[342962133,1732229441411,-500.0,0.00039796,11]
[342962134,1732229441420,-1765.22,0.00039796,11]
[342962135,1732229441430,-500.0,0.00039796,11]
[342962136,1732229441440,-500.0,0.00039796,11]
[342962137,1732229441450,-500.0,0.00039796,11]
[342962138,1732229441459,-500.0,0.00039796,11]
[342962139,1732229441469,-500.0,0.00039796,11]
[342962140,1732229441479,-407.84,0.00039796,11]
[342962141,1732229441488,-751.76,0.00039796,2]
[342962142,1732229441498,-306.11,0.00039796,11]
[342962143,1732229441539,-500.0,0.00039796,11]
[342962144,1732229441549,-500.0,0.00039796,11]
[342962145,1732229441558,-2212.16,0.00039796,11]
[342962146,1732229441568,-500.0,0.00039796,11]
[342962147,1732229441576,-622.88,0.00039796,11]
[342962148,1732229441586,-500.0,0.00039796,11]
[342962149,1732229441594,-1607.83,0.00039796,11]
[342962150,1732229441603,-500.0,0.00039796,11]
[342962151,1732229441612,-500.0,0.00039796,11]
[342962152,1732229441622,-500.0,0.00039796,11]
[342962153,1732229441631,-394.44,0.00039796,11]
[342962154,1732229441640,-166.248804,0.00039864,14]
[342962155,1732229441650,-166.248804,0.00039864,14]
[342962156,1732229441658,-2500.0,0.00039864,30]
[342962157,1732229441669,-1627.95774407,0.00039875,30]
[342962158,1732229441679,-602.2302,0.00039888,7]
[342962159,1732229441688,-257.006344,0.00039896,14]
[342962160,1732229441698,-500.0,0.00039896,11]
[342962161,1732229441707,-389.46,0.00039896,11]
[342962162,1732229441717,-410.54852312,0.00039896,11]
[342962163,1732229441726,-500.0,0.00039896,11]
[342962164,1732229441735,-500.0,0.00039896,11]
[342962165,1732229441745,-500.0,0.00039896,11]
[342962166,1732229441754,-151.0,0.00039896,14]
[342962167,1732229441763,-151.0,0.00039896,14]
[342962168,1732229441772,-185.572498,0.00039896,14]
[342962169,1732229441781,-185.572498,0.00039896,14]
[342962170,1732229441790,-500.0,0.00039896,11]
[342962171,1732229441799,-151.0,0.00039896,14]
[342962172,1732229441808,-151.0,0.00039896,14]
[342962173,1732229441818,-151.0,0.00039896,14]
[342962174,1732229441827,-500.0,0.00039896,11]
[342962175,1732229441836,-500.0,0.00039896,11]
[342962176,1732229441846,-500.0,0.00039896,11]
[342962177,1732229441855,-1075.786781,0.00039896,14]
[342962178,1732229441864,-500.0,0.00039896,11]
[342962179,1732229441874,-500.0,0.00039896,11]
[342962180,1732229441883,-1075.786781,0.00039896,14]
[342962181,1732229441892,-500.0,0.00039896,11]
[342962182,1732229441901,-151.0,0.00039896,14]
[342962183,1732229441911,-151.0,0.00039896,14]
[342962184,1732229441920,-500.0,0.00039896,11]
[342962185,1732229441929,-500.0,0.00039896,11]
[342962186,1732229441939,-500.0,0.00039896,11]
[342962187,1732229441949,-500.0,0.00039896,11]
[342962188,1732229441958,-500.0,0.00039896,11]
[342962189,1732229441969,-500.0,0.00039896,11]
[342962190,1732229441979,-546.69,0.00039896,11]
[342962191,1732229441989,-500.0,0.00039896,11]
[342962192,1732229441998,-500.0,0.00039896,11]
[342962193,1732229442007,-500.0,0.00039896,11]
[342962194,1732229442016,-500.0,0.00039896,11]
[342962195,1732229442025,-500.0,0.00039896,11]
[342962196,1732229442034,-500.0,0.00039896,11]
[342962197,1732229442042,-500.0,0.00039896,11]
[342962198,1732229442051,-500.0,0.00039896,11]
[342962199,1732229442060,-151.0,0.00039897,14]
[342962200,1732229442069,-169.240888,0.00039897,14]
[342962201,1732229442078,-169.240888,0.00039897,14]
[342962202,1732229442086,-151.0,0.00039897,14]
[342962203,1732229442095,-151.0,0.00039897,14]
[342962204,1732229442104,-151.0,0.00039897,14]
[342962205,1732229442113,-151.0,0.00039897,14]
[342962206,1732229442122,-151.0,0.00039897,14]
[342962207,1732229442131,-1600.0,0.000399,14]
[342962208,1732229442141,-401.98888651,0.0003999,120]
[342962209,1732229442151,-151.0,0.00039998,14]
[342962210,1732229442159,-151.0,0.00039998,14]
[342962211,1732229442168,-151.0,0.00039998,14]
[342962212,1732229442177,-151.0,0.00039998,14]
[342962213,1732229442185,-500.0,0.00039998,11]
[342962214,1732229442194,-500.0,0.00039998,11]
[342962215,1732229442203,-500.0,0.00039998,11]
[342962216,1732229442211,-500.0,0.00039998,11]
[342962217,1732229442223,-500.0,0.00039998,11]
[342962218,1732229442232,-1000.0,0.00039999,2]
[342962219,1732229442241,-500.0,0.0004,30]
[342962220,1732229442250,-500.0,0.0004,120]
[342962221,1732229442260,-710.94070955,0.0004,120]
[342962222,1732229442268,-327.05785189,0.0004,120]
[342962223,1732229442278,-299.6996091,0.0004,4]
[342962224,1732229442286,-949.48223693,0.0004,20]
[342962225,1732229442295,-1000.0,0.0004,120]
[342962226,1732229442305,-500.0,0.0004,120]
[342962227,1732229442315,-500.0,0.0004007,11]
[342962228,1732229442325,-500.0,0.0004007,11]
[342962229,1732229442334,-590.79,0.0004007,11]
[342962230,1732229442344,-500.0,0.0004007,11]
[342962231,1732229442353,-500.0,0.0004007,11]
[342962232,1732229442362,-500.0,0.0004007,11]
[342962233,1732229442372,-500.0,0.0004007,11]
[342962234,1732229442381,-1765.22,0.0004007,11]
[342962235,1732229442391,-500.0,0.0004007,11]
[342962236,1732229442400,-500.0,0.0004007,11]
[342962237,1732229442410,-381.52,0.0004007,11]
[342962238,1732229442420,-500.0,0.0004007,11]
[342962239,1732229442429,-500.0,0.0004007,11]
[342962240,1732229442439,-751.76,0.0004007,2]
[342962241,1732229442448,-500.0,0.0004007,11]
[342962242,1732229442457,-500.0,0.0004007,11]
[342962243,1732229442467,-2212.16,0.0004007,11]
[342962244,1732229442475,-500.0,0.0004007,11]
[342962245,1732229442484,-622.88,0.0004007,11]
[342962246,1732229442493,-500.0,0.0004007,11]